[Event "Titled Tuesday Blitz June 22 2021"]
[White "Terry, Renato"]
[Black "Pert, Richard G"]
[WhiteFideId "3803457"]
[BlackFideId "404748"]
[WhiteElo "2581"]
[BlackElo "2441"]
[Result "1/2-1/2"]
[Round "02"]
[TimeControl "180+1"]
[Date "2021.06.22"]
[WhiteClock "0:01:08"]
[BlackClock "0:01:52"]

1. e4 {[%clk 0:03:00]}  c5 {[%clk 0:02:59]} 2. Nf3 {[%clk 0:03:01]}  d6 {[%clk 0:02:59]} 3. Bb5+ {[%clk 0:03:01]}  Nd7 {[%clk 0:02:59]} 4. d4 {[%clk 0:03:00]}  cxd4 {[%clk 0:02:58]} 5. Qxd4 {[%clk 0:03:01]}  a6 {[%clk 0:02:58]} 6. Bxd7+ {[%clk 0:03:01]}  Bxd7 {[%clk 0:02:59]} 7. Bg5 {[%clk 0:03:01]}  h6 {[%clk 0:02:56]} 8. Bh4 {[%clk 0:03:01]}  Rc8 {[%clk 0:02:55]} 9. O-O {[%clk 0:03:00]}  Qc7 {[%clk 0:02:44]} 10. Nc3 {[%clk 0:02:59]}  e5 {[%clk 0:02:43]} 11. Qd3 {[%clk 0:02:58]}  g5 {[%clk 0:02:37]} 12. Bg3 {[%clk 0:02:57]}  Nf6 {[%clk 0:02:36]} 13. Rfd1 {[%clk 0:02:50]}  Be7 {[%clk 0:02:32]} 14. Rac1 {[%clk 0:02:47]}  Be6 {[%clk 0:02:29]} 15. a3 {[%clk 0:02:24]}  Rg8 {[%clk 0:02:19]} 16. Qe3 {[%clk 0:01:22]}  Ng4 {[%clk 0:02:10]} 17. Qe2 {[%clk 0:01:16]}  h5 {[%clk 0:02:07]} 18. Nd5 {[%clk 0:01:07]}  Bxd5 {[%clk 0:02:05]} 19. exd5 {[%clk 0:01:08]}  h4 {[%clk 0:02:03]} 20. h3 {[%clk 0:01:08]}  hxg3 {[%clk 0:01:59]} 21. hxg4 {[%clk 0:01:08]}  Qc4 {[%clk 0:01:52]} 1/2-1/2


[Site "https://www.chess.com"]

[Event "Titled Tuesday Blitz June 22 2021"]
[White "Zhigalko, Sergei"]
[Black "Peralta, Eduardo"]
[WhiteFideId "13502956"]
[BlackFideId "3700062"]
[WhiteElo "2662"]
[BlackElo "2205"]
[Result "0-1"]
[Round "02"]
[TimeControl "180+1"]
[Date "2021.06.22"]
[WhiteClock "0:00:02"]
[BlackClock "0:00:20"]

1. e4 {[%clk 0:03:00]}  c5 {[%clk 0:02:59]} 2. Nf3 {[%clk 0:03:01]}  Nc6 {[%clk 0:02:58]} 3. c3 {[%clk 0:03:00]}  g6 {[%clk 0:02:56]} 4. d4 {[%clk 0:03:00]}  d5 {[%clk 0:02:55]} 5. exd5 {[%clk 0:02:54]}  Qxd5 {[%clk 0:02:54]} 6. Na3 {[%clk 0:02:55]}  cxd4 {[%clk 0:02:45]} 7. Bc4 {[%clk 0:02:46]}  Qd8 {[%clk 0:02:42]} 8. Nb5 {[%clk 0:02:41]}  a6 {[%clk 0:02:38]} 9. Nbxd4 {[%clk 0:02:39]}  Nxd4 {[%clk 0:02:35]} 10. Nxd4 {[%clk 0:02:34]}  Bg7 {[%clk 0:02:35]} 11. O-O {[%clk 0:02:10]}  Nf6 {[%clk 0:02:34]} 12. Re1 {[%clk 0:02:10]}  O-O {[%clk 0:02:33]} 13. Qf3 {[%clk 0:02:11]}  Qc7 {[%clk 0:02:32]} 14. Bb3 {[%clk 0:02:09]}  e5 {[%clk 0:02:27]} 15. Nc2 {[%clk 0:02:02]}  Bf5 {[%clk 0:02:09]} 16. Bg5 {[%clk 0:01:56]}  Rae8 {[%clk 0:01:27]} 17. Ne3 {[%clk 0:01:48]}  Be4 {[%clk 0:01:25]} 18. Qe2 {[%clk 0:01:23]}  Bc6 {[%clk 0:01:25]} 19. Rad1 {[%clk 0:01:19]}  Ne4 {[%clk 0:01:24]} 20. Bh4 {[%clk 0:01:17]}  Kh8 {[%clk 0:01:24]} 21. Nd5 {[%clk 0:01:17]}  Bxd5 {[%clk 0:01:22]} 22. Bxd5 {[%clk 0:01:17]}  Nc5 {[%clk 0:01:20]} 23. Qc4 {[%clk 0:00:46]}  b5 {[%clk 0:01:18]} 24. Qb4 {[%clk 0:00:46]}  f5 {[%clk 0:01:16]} 25. f3 {[%clk 0:00:46]}  e4 {[%clk 0:01:12]} 26. Bf2 {[%clk 0:00:44]}  Nd3 {[%clk 0:01:11]} 27. Rxd3 {[%clk 0:00:36]}  exd3 {[%clk 0:01:10]} 28. Rd1 {[%clk 0:00:37]}  Be5 {[%clk 0:00:59]} 29. g3 {[%clk 0:00:35]}  Qd6 {[%clk 0:00:53]} 30. Qxd6 {[%clk 0:00:30]}  Bxd6 {[%clk 0:00:52]} 31. Rxd3 {[%clk 0:00:30]}  Be5 {[%clk 0:00:52]} 32. Bc5 {[%clk 0:00:30]}  Rf6 {[%clk 0:00:49]} 33. f4 {[%clk 0:00:27]}  Bc7 {[%clk 0:00:48]} 34. Bd4 {[%clk 0:00:27]}  Bb6 {[%clk 0:00:49]} 35. Bxb6 {[%clk 0:00:20]}  Rxb6 {[%clk 0:00:48]} 36. Bb3 {[%clk 0:00:20]}  Re7 {[%clk 0:00:42]} 37. Rd8+ {[%clk 0:00:19]}  Kg7 {[%clk 0:00:42]} 38. Kf2 {[%clk 0:00:18]}  Rbb7 {[%clk 0:00:42]} 39. h3 {[%clk 0:00:11]}  Rbd7 {[%clk 0:00:42]} 40. Rg8+ {[%clk 0:00:11]}  Kh6 {[%clk 0:00:41]} 41. g4 {[%clk 0:00:11]}  Rd2+ {[%clk 0:00:40]} 42. Kf3 {[%clk 0:00:03]}  Rd3+ {[%clk 0:00:39]} 43. Kg2 {[%clk 0:00:03]}  fxg4 {[%clk 0:00:24]} 44. hxg4 {[%clk 0:00:03]}  Re2+ {[%clk 0:00:21]} 45. Kf1 {[%clk 0:00:04]}  Rxb2 {[%clk 0:00:21]} 46. g5+ {[%clk 0:00:02]}  Kh5 {[%clk 0:00:20]} 47. Be6 {[%clk 0:00:02]}  Kh4 {[%clk 0:00:20]} 0-1


[Site "https://www.chess.com"]

[Event "Titled Tuesday Blitz June 22 2021"]
[White "elcandado"]
[Black "Howell, David W L"]
[BlackFideId "410608"]
[WhiteElo "2602"]
[BlackElo "2643"]
[Result "0-1"]
[Round "02"]
[TimeControl "180+1"]
[Date "2021.06.22"]
[WhiteClock "0:00:14"]
[BlackClock "0:00:30"]

1. d4 {[%clk 0:03:00]}  d5 {[%clk 0:02:55]} 2. Bf4 {[%clk 0:03:00]}  c5 {[%clk 0:02:55]} 3. e3 {[%clk 0:03:00]}  cxd4 {[%clk 0:02:54]} 4. exd4 {[%clk 0:02:59]}  Nc6 {[%clk 0:02:55]} 5. c3 {[%clk 0:02:58]}  f6 {[%clk 0:02:55]} 6. Nf3 {[%clk 0:02:52]}  g5 {[%clk 0:02:53]} 7. Bg3 {[%clk 0:02:27]}  h5 {[%clk 0:02:52]} 8. h4 {[%clk 0:02:26]}  g4 {[%clk 0:02:52]} 9. Nfd2 {[%clk 0:02:21]}  Nh6 {[%clk 0:02:52]} 10. Bd3 {[%clk 0:02:20]}  Nf5 {[%clk 0:02:50]} 11. Qe2 {[%clk 0:01:52]}  Kf7 {[%clk 0:02:41]} 12. O-O {[%clk 0:01:47]}  Nxg3 {[%clk 0:02:31]} 13. fxg3 {[%clk 0:01:45]}  e6 {[%clk 0:02:32]} 14. a4 {[%clk 0:01:38]}  Bd6 {[%clk 0:02:29]} 15. Qe3 {[%clk 0:01:30]}  Bd7 {[%clk 0:02:18]} 16. Na3 {[%clk 0:01:28]}  a6 {[%clk 0:02:18]} 17. Nc2 {[%clk 0:01:27]}  f5 {[%clk 0:02:07]} 18. Rf2 {[%clk 0:01:16]}  Qf6 {[%clk 0:02:02]} 19. Nf1 {[%clk 0:01:13]}  Kg7 {[%clk 0:01:59]} 20. Re1 {[%clk 0:01:12]}  Rae8 {[%clk 0:01:56]} 21. Rfe2 {[%clk 0:01:06]}  Rhf8 {[%clk 0:01:55]} 22. Rf2 {[%clk 0:01:02]}  f4 {[%clk 0:01:45]} 23. Qd2 {[%clk 0:00:55]}  Qh6 {[%clk 0:01:35]} 24. gxf4 {[%clk 0:00:50]}  Bxf4 {[%clk 0:01:21]} 25. Qd1 {[%clk 0:00:43]}  Bd6 {[%clk 0:01:17]} 26. g3 {[%clk 0:00:29]}  Rxf2 {[%clk 0:01:09]} 27. Kxf2 {[%clk 0:00:30]}  e5 {[%clk 0:01:10]} 28. dxe5 {[%clk 0:00:26]}  Bc5+ {[%clk 0:01:03]} 29. Kg2 {[%clk 0:00:25]}  Nxe5 {[%clk 0:00:59]} 30. Nd4 {[%clk 0:00:24]}  Qf6 {[%clk 0:00:45]} 31. Ne3 {[%clk 0:00:19]}  Bxd4 {[%clk 0:00:40]} 32. Rf1 {[%clk 0:00:16]}  Bxe3 {[%clk 0:00:34]} 33. Rxf6 {[%clk 0:00:15]}  Kxf6 {[%clk 0:00:35]} 34. Be2 {[%clk 0:00:14]}  Bc6 {[%clk 0:00:31]} 35. Kh2 {[%clk 0:00:14]}  d4 {[%clk 0:00:30]} 36. Qf1+ {[%clk 0:00:14]}  Nf3+ {[%clk 0:00:30]} 37. Bxf3 {[%clk 0:00:14]}  Bxf3 {[%clk 0:00:30]} 38. cxd4 {[%clk 0:00:14]}  Bxd4 {[%clk 0:00:30]} 0-1


[Site "https://www.chess.com"]

[Event "Titled Tuesday Blitz June 22 2021"]
[White "Araujo Sanchez, Josue"]
[Black "Bortnyk, Olexandr"]
[WhiteFideId "6416896"]
[BlackFideId "14120828"]
[WhiteElo "2140"]
[BlackElo "2723"]
[Result "0-1"]
[Round "03"]
[TimeControl "180+1"]
[Date "2021.06.22"]
[WhiteClock "0:00:03"]
[BlackClock "0:00:08"]

1. Nf3 {[%clk 0:03:00]}  d6 {[%clk 0:02:59]} 2. d4 {[%clk 0:03:00]}  Nf6 {[%clk 0:02:59]} 3. Nc3 {[%clk 0:03:00]}  Bf5 {[%clk 0:02:56]} 4. Bg5 {[%clk 0:02:58]}  c6 {[%clk 0:02:56]} 5. Qd2 {[%clk 0:02:54]}  Ne4 {[%clk 0:02:55]} 6. Nxe4 {[%clk 0:02:54]}  Bxe4 {[%clk 0:02:56]} 7. O-O-O {[%clk 0:02:53]}  Qb6 {[%clk 0:02:53]} 8. e3 {[%clk 0:02:53]}  Na6 {[%clk 0:02:48]} 9. Bd3 {[%clk 0:02:50]}  Bxf3 {[%clk 0:02:43]} 10. gxf3 {[%clk 0:02:49]}  Nb4 {[%clk 0:02:44]} 11. a3 {[%clk 0:02:08]}  Nxd3+ {[%clk 0:02:42]} 12. Qxd3 {[%clk 0:02:09]}  e6 {[%clk 0:02:19]} 13. Rhg1 {[%clk 0:01:59]}  Rc8 {[%clk 0:02:04]} 14. Kb1 {[%clk 0:01:57]}  d5 {[%clk 0:02:02]} 15. f4 {[%clk 0:01:51]}  c5 {[%clk 0:01:48]} 16. dxc5 {[%clk 0:01:45]}  Rxc5 {[%clk 0:01:49]} 17. Ka2 {[%clk 0:01:44]}  Qc6 {[%clk 0:01:30]} 18. e4 {[%clk 0:01:30]}  f6 {[%clk 0:01:26]} 19. Bh4 {[%clk 0:01:28]}  Kf7 {[%clk 0:01:18]} 20. f3 {[%clk 0:01:20]}  Rxc2 {[%clk 0:01:09]} 21. Kb1 {[%clk 0:01:20]}  Rc5 {[%clk 0:01:02]} 22. Bf2 {[%clk 0:01:17]}  Rc4 {[%clk 0:01:00]} 23. f5 {[%clk 0:01:16]}  dxe4 {[%clk 0:00:49]} 24. fxe4 {[%clk 0:01:03]}  Be7 {[%clk 0:00:37]} 25. e5 {[%clk 0:00:53]}  Rd8 {[%clk 0:00:34]} 26. Qb3 {[%clk 0:00:45]}  Rxd1+ {[%clk 0:00:33]} 27. Rxd1 {[%clk 0:00:45]}  exf5 {[%clk 0:00:30]} 28. exf6 {[%clk 0:00:43]}  Bxf6 {[%clk 0:00:31]} 29. Bxa7 {[%clk 0:00:37]}  b5 {[%clk 0:00:30]} 30. Bb8 {[%clk 0:00:27]}  h6 {[%clk 0:00:28]} 31. Ka2 {[%clk 0:00:24]}  Kg6 {[%clk 0:00:28]} 32. Qg3+ {[%clk 0:00:20]}  Rg4 {[%clk 0:00:27]} 33. Qe1 {[%clk 0:00:17]}  Qc4+ {[%clk 0:00:27]} 34. Kb1 {[%clk 0:00:17]}  Re4 {[%clk 0:00:18]} 35. Qg3+ {[%clk 0:00:14]}  Kh7 {[%clk 0:00:17]} 36. Rd2 {[%clk 0:00:07]}  Qf1+ {[%clk 0:00:12]} 37. Ka2 {[%clk 0:00:06]}  Re1 {[%clk 0:00:13]} 38. Qc7 {[%clk 0:00:03]}  Ra1+ {[%clk 0:00:13]} 39. Kb3 {[%clk 0:00:03]}  Rxa3+ {[%clk 0:00:12]} 40. Kxa3 {[%clk 0:00:02]}  Qa1+ {[%clk 0:00:12]} 41. Kb4 {[%clk 0:00:01]}  Qe1 {[%clk 0:00:07]} 42. Qc2 {[%clk 0:00:01]}  Be7+ {[%clk 0:00:02]} 43. Kc3 {[%clk 0:00:02]}  Qe6 {[%clk 0:00:03]} 44. Kd3 {[%clk 0:00:02]}  Bg5 {[%clk 0:00:03]} 45. Kc3 {[%clk 0:00:03]}  b4+ {[%clk 0:00:02]} 46. Kxb4 {[%clk 0:00:02]}  Qb6+ {[%clk 0:00:02]} 47. Kc3 {[%clk 0:00:03]}  Bxd2+ {[%clk 0:00:02]} 48. Kd3 {[%clk 0:00:04]}  Qxb8 {[%clk 0:00:02]} 49. Kxd2 {[%clk 0:00:04]}  Qxh2+ {[%clk 0:00:02]} 50. Kc3 {[%clk 0:00:04]}  Qc7+ {[%clk 0:00:03]} 51. Kd3 {[%clk 0:00:04]}  Qe7 {[%clk 0:00:03]} 52. Kd4 {[%clk 0:00:03]}  Kg6 {[%clk 0:00:03]} 53. Qg2+ {[%clk 0:00:02]}  Kf6 {[%clk 0:00:03]} 54. Qc6+ {[%clk 0:00:02]}  Qe6 {[%clk 0:00:04]} 55. Qc7 {[%clk 0:00:01]}  Qe4+ {[%clk 0:00:04]} 56. Kc5 {[%clk 0:00:01]}  Qc2+ {[%clk 0:00:04]} 57. Kb6 {[%clk 0:00:02]}  Qxc7+ {[%clk 0:00:05]} 58. Kxc7 {[%clk 0:00:02]}  f4 {[%clk 0:00:06]} 59. b4 {[%clk 0:00:02]}  f3 {[%clk 0:00:07]} 60. b5 {[%clk 0:00:03]}  f2 {[%clk 0:00:07]} 61. b6 {[%clk 0:00:03]}  f1=Q {[%clk 0:00:08]} 0-1


[Site "https://www.chess.com"]

[Event "Titled Tuesday Blitz June 22 2021"]
[White "Csonka, Balazs"]
[Black "Kovalev, Vladislav"]
[WhiteFideId "742910"]
[BlackFideId "13504398"]
[WhiteElo "2404"]
[BlackElo "2573"]
[Result "0-1"]
[Round "03"]
[TimeControl "180+1"]
[Date "2021.06.22"]
[WhiteClock "0:00:01"]
[BlackClock "0:00:35"]

1. d4 {[%clk 0:03:00]}  Nf6 {[%clk 0:03:00]} 2. c4 {[%clk 0:03:00]}  g6 {[%clk 0:03:00]} 3. Nc3 {[%clk 0:03:00]}  Bg7 {[%clk 0:03:01]} 4. e4 {[%clk 0:02:59]}  d6 {[%clk 0:03:02]} 5. Be2 {[%clk 0:02:59]}  O-O {[%clk 0:03:03]} 6. Nf3 {[%clk 0:02:59]}  e5 {[%clk 0:03:03]} 7. O-O {[%clk 0:02:57]}  Na6 {[%clk 0:03:03]} 8. Be3 {[%clk 0:02:54]}  Ng4 {[%clk 0:03:02]} 9. Bg5 {[%clk 0:02:54]}  Qe8 {[%clk 0:03:03]} 10. Re1 {[%clk 0:02:54]}  exd4 {[%clk 0:02:49]} 11. Nd5 {[%clk 0:02:54]}  d3 {[%clk 0:02:34]} 12. Bxd3 {[%clk 0:02:40]}  f6 {[%clk 0:02:34]} 13. Bf4 {[%clk 0:02:35]}  Ne5 {[%clk 0:02:34]} 14. h3 {[%clk 0:02:08]}  c6 {[%clk 0:02:33]} 15. Nc3 {[%clk 0:02:05]}  Nc5 {[%clk 0:02:29]} 16. Be2 {[%clk 0:01:59]}  Qe7 {[%clk 0:02:29]} 17. Bh2 {[%clk 0:01:50]}  a5 {[%clk 0:02:28]} 18. Nd4 {[%clk 0:01:45]}  a4 {[%clk 0:02:25]} 19. f4 {[%clk 0:01:42]}  Nf7 {[%clk 0:02:24]} 20. Bf3 {[%clk 0:01:39]}  f5 {[%clk 0:01:54]} 21. Qd2 {[%clk 0:00:52]}  Qf6 {[%clk 0:01:50]} 22. Rad1 {[%clk 0:00:51]}  Bd7 {[%clk 0:01:44]} 23. e5 {[%clk 0:00:36]}  dxe5 {[%clk 0:01:45]} 24. fxe5 {[%clk 0:00:37]}  Qh4 {[%clk 0:01:43]} 25. e6 {[%clk 0:00:16]}  Qxd4+ {[%clk 0:01:42]} 26. Qxd4 {[%clk 0:00:16]}  Bxd4+ {[%clk 0:01:43]} 27. Rxd4 {[%clk 0:00:17]}  Bxe6 {[%clk 0:01:44]} 28. Bc7 {[%clk 0:00:17]}  Rfe8 {[%clk 0:01:40]} 29. Bb6 {[%clk 0:00:13]}  Nd7 {[%clk 0:01:39]} 30. Rxe6 {[%clk 0:00:13]}  Nxb6 {[%clk 0:01:39]} 31. Rxe8+ {[%clk 0:00:13]}  Rxe8 {[%clk 0:01:40]} 32. c5 {[%clk 0:00:13]}  Nc8 {[%clk 0:01:34]} 33. Nxa4 {[%clk 0:00:13]}  Ne5 {[%clk 0:01:35]} 34. b4 {[%clk 0:00:12]}  Kf7 {[%clk 0:01:28]} 35. Kf2 {[%clk 0:00:11]}  Kf6 {[%clk 0:01:28]} 36. Nb2 {[%clk 0:00:09]}  Ne7 {[%clk 0:01:26]} 37. a4 {[%clk 0:00:08]}  Nxf3 {[%clk 0:01:23]} 38. gxf3 {[%clk 0:00:08]}  Nd5 {[%clk 0:01:24]} 39. b5 {[%clk 0:00:08]}  g5 {[%clk 0:01:13]} 40. a5 {[%clk 0:00:07]}  Nc3 {[%clk 0:00:51]} 41. bxc6 {[%clk 0:00:04]}  bxc6 {[%clk 0:00:52]} 42. Kf1 {[%clk 0:00:02]}  Re3 {[%clk 0:00:48]} 43. Nd1 {[%clk 0:00:01]}  Rxf3+ {[%clk 0:00:47]} 44. Kg2 {[%clk 0:00:01]}  Ke5 {[%clk 0:00:35]} 0-1


[Site "https://www.chess.com"]

[Event "Titled Tuesday Blitz June 22 2021"]
[White "Dang, Hoang Son"]
[Black "Lavrik, Dmitry"]
[WhiteFideId "12402435"]
[BlackFideId "24113190"]
[WhiteElo "2248"]
[BlackElo "2369"]
[Result "1-0"]
[Round "03"]
[TimeControl "180+1"]
[Date "2021.06.22"]
[WhiteClock "0:01:53"]
[BlackClock "0:00:24"]

1. d4 {[%clk 0:03:00]}  d6 {[%clk 0:02:58]} 2. Nc3 {[%clk 0:02:59]}  g6 {[%clk 0:02:57]} 3. e4 {[%clk 0:02:59]}  Bg7 {[%clk 0:02:58]} 4. h4 {[%clk 0:02:59]}  Nf6 {[%clk 0:02:57]} 5. Be2 {[%clk 0:02:57]}  c5 {[%clk 0:02:56]} 6. dxc5 {[%clk 0:02:57]}  Qa5 {[%clk 0:02:57]} 7. Bd2 {[%clk 0:02:53]}  Qxc5 {[%clk 0:02:48]} 8. Be3 {[%clk 0:02:48]}  Qb4 {[%clk 0:02:43]} 9. Qd4 {[%clk 0:02:40]}  Nc6 {[%clk 0:02:06]} 10. Qxb4 {[%clk 0:02:38]}  Nxb4 {[%clk 0:02:07]} 11. O-O-O {[%clk 0:02:38]}  Be6 {[%clk 0:02:05]} 12. a3 {[%clk 0:02:37]}  Nc6 {[%clk 0:02:00]} 13. f3 {[%clk 0:02:31]}  O-O {[%clk 0:01:58]} 14. Nh3 {[%clk 0:02:31]}  a6 {[%clk 0:01:52]} 15. Nf4 {[%clk 0:02:31]}  b5 {[%clk 0:01:43]} 16. h5 {[%clk 0:02:29]}  b4 {[%clk 0:01:41]} 17. axb4 {[%clk 0:02:29]}  Nxb4 {[%clk 0:01:42]} 18. Nxe6 {[%clk 0:02:30]}  fxe6 {[%clk 0:01:41]} 19. hxg6 {[%clk 0:02:31]}  hxg6 {[%clk 0:01:42]} 20. Bc4 {[%clk 0:02:31]}  Kf7 {[%clk 0:01:36]} 21. g4 {[%clk 0:02:20]}  Rfc8 {[%clk 0:01:25]} 22. Bb3 {[%clk 0:02:18]}  a5 {[%clk 0:01:22]} 23. Kb1 {[%clk 0:02:16]}  Nd7 {[%clk 0:01:11]} 24. f4 {[%clk 0:02:08]}  Bxc3 {[%clk 0:00:32]} 25. f5 {[%clk 0:02:01]}  Nf8 {[%clk 0:00:24]} 26. bxc3 {[%clk 0:01:56]}  a4 {[%clk 0:00:24]} 27. Bxe6+ {[%clk 0:01:55]}  Nxe6 {[%clk 0:00:24]} 28. fxe6+ {[%clk 0:01:55]}  Kxe6 {[%clk 0:00:24]} 29. cxb4 {[%clk 0:01:56]}  Rab8 {[%clk 0:00:24]} 30. Rd4 {[%clk 0:01:53]} 1-0


[Site "https://www.chess.com"]

[Event "Titled Tuesday Blitz June 22 2021"]
[White "Deepan Chakkravarthy J."]
[Black "Hansen, Eric"]
[WhiteFideId "5011132"]
[BlackFideId "2606771"]
[WhiteElo "2490"]
[BlackElo "2568"]
[Result "0-1"]
[Round "03"]
[TimeControl "180+1"]
[Date "2021.06.22"]
[WhiteClock "0:00:16"]
[BlackClock "0:00:09"]

1. e4 {[%clk 0:03:00]}  c5 {[%clk 0:02:44]} 2. Nf3 {[%clk 0:03:00]}  e6 {[%clk 0:02:40]} 3. d4 {[%clk 0:02:58]}  cxd4 {[%clk 0:02:40]} 4. Nxd4 {[%clk 0:02:58]}  a6 {[%clk 0:02:40]} 5. c4 {[%clk 0:02:57]}  Nf6 {[%clk 0:02:40]} 6. Nc3 {[%clk 0:02:56]}  Qc7 {[%clk 0:02:40]} 7. Bd3 {[%clk 0:02:52]}  Nc6 {[%clk 0:02:34]} 8. Nde2 {[%clk 0:02:49]}  Ne5 {[%clk 0:02:29]} 9. b3 {[%clk 0:02:46]}  Nxd3+ {[%clk 0:02:24]} 10. Qxd3 {[%clk 0:02:45]}  b6 {[%clk 0:02:25]} 11. O-O {[%clk 0:02:40]}  Bb7 {[%clk 0:02:25]} 12. h3 {[%clk 0:02:39]}  Be7 {[%clk 0:02:24]} 13. Be3 {[%clk 0:02:38]}  O-O {[%clk 0:02:22]} 14. Rfd1 {[%clk 0:02:34]}  Rfd8 {[%clk 0:02:19]} 15. Rac1 {[%clk 0:02:27]}  Ba3 {[%clk 0:02:11]} 16. Rc2 {[%clk 0:02:23]}  Rac8 {[%clk 0:02:11]} 17. Bf4 {[%clk 0:02:17]}  Qc6 {[%clk 0:02:00]} 18. Nd4 {[%clk 0:01:51]}  Qc5 {[%clk 0:02:00]} 19. e5 {[%clk 0:01:41]}  Ne8 {[%clk 0:01:52]} 20. Na4 {[%clk 0:01:40]}  Qc7 {[%clk 0:01:49]} 21. Qg3 {[%clk 0:00:53]}  Be7 {[%clk 0:01:40]} 22. Rcd2 {[%clk 0:00:51]}  Bc6 {[%clk 0:01:16]} 23. Nc3 {[%clk 0:00:45]}  Ba8 {[%clk 0:01:15]} 24. Nc2 {[%clk 0:00:38]}  b5 {[%clk 0:01:14]} 25. Ne3 {[%clk 0:00:31]}  Bb4 {[%clk 0:01:08]} 26. Rc2 {[%clk 0:00:30]}  Qa5 {[%clk 0:01:08]} 27. Rdc1 {[%clk 0:00:28]}  d5 {[%clk 0:00:56]} 28. exd6 {[%clk 0:00:27]}  Nxd6 {[%clk 0:00:56]} 29. Be5 {[%clk 0:00:25]}  Ne8 {[%clk 0:00:52]} 30. cxb5 {[%clk 0:00:24]}  axb5 {[%clk 0:00:49]} 31. Ng4 {[%clk 0:00:22]}  Kh8 {[%clk 0:00:16]} 32. Ne2 {[%clk 0:00:20]}  Rxc2 {[%clk 0:00:14]} 33. Rxc2 {[%clk 0:00:20]}  f6 {[%clk 0:00:14]} 34. Bc7 {[%clk 0:00:18]}  Nxc7 {[%clk 0:00:12]} 35. Rxc7 {[%clk 0:00:18]}  Bd6 {[%clk 0:00:09]} 36. Qc3 {[%clk 0:00:16]}  Qxc7 {[%clk 0:00:09]} 0-1


[Site "https://www.chess.com"]

[Event "Titled Tuesday Blitz June 22 2021"]
[White "Ibrahimli, Murad"]
[Black "Weetik, Vjacheslav"]
[WhiteFideId "13410229"]
[BlackFideId "4153472"]
[WhiteElo "2109"]
[BlackElo "2469"]
[Result "1-0"]
[Round "03"]
[TimeControl "180+1"]
[Date "2021.06.22"]
[WhiteClock "0:00:39"]
[BlackClock "0:00:01"]

1. e4 {[%clk 0:03:00]}  c6 {[%clk 0:02:56]} 2. d3 {[%clk 0:02:58]}  d5 {[%clk 0:02:56]} 3. Nd2 {[%clk 0:02:59]}  Nf6 {[%clk 0:02:56]} 4. Ngf3 {[%clk 0:02:58]}  Bg4 {[%clk 0:02:56]} 5. h3 {[%clk 0:02:56]}  Bh5 {[%clk 0:02:56]} 6. e5 {[%clk 0:02:56]}  Nfd7 {[%clk 0:02:56]} 7. e6 {[%clk 0:02:56]}  fxe6 {[%clk 0:02:52]} 8. Qe2 {[%clk 0:02:56]}  e5 {[%clk 0:02:47]} 9. g4 {[%clk 0:02:52]}  Bg6 {[%clk 0:02:37]} 10. h4 {[%clk 0:02:40]}  e6 {[%clk 0:02:26]} 11. h5 {[%clk 0:02:39]}  Bf7 {[%clk 0:02:26]} 12. Nb3 {[%clk 0:02:32]}  Bd6 {[%clk 0:02:14]} 13. h6 {[%clk 0:02:29]}  g6 {[%clk 0:02:00]} 14. Bd2 {[%clk 0:02:22]}  a5 {[%clk 0:01:37]} 15. a4 {[%clk 0:02:20]}  O-O {[%clk 0:01:32]} 16. Bc3 {[%clk 0:02:15]}  Qc7 {[%clk 0:00:59]} 17. Ng5 {[%clk 0:02:02]}  Na6 {[%clk 0:00:48]} 18. Bxa5 {[%clk 0:01:46]}  Bb4+ {[%clk 0:00:46]} 19. Bxb4 {[%clk 0:01:45]}  Nxb4 {[%clk 0:00:47]} 20. c3 {[%clk 0:01:46]}  Na6 {[%clk 0:00:42]} 21. Bg2 {[%clk 0:01:40]}  Qd8 {[%clk 0:00:25]} 22. Qe3 {[%clk 0:01:34]}  Qf6 {[%clk 0:00:22]} 23. O-O {[%clk 0:01:31]}  b6 {[%clk 0:00:19]} 24. Rae1 {[%clk 0:01:24]}  Nc7 {[%clk 0:00:18]} 25. d4 {[%clk 0:01:23]}  Rxa4 {[%clk 0:00:13]} 26. dxe5 {[%clk 0:01:21]}  Qf4 {[%clk 0:00:14]} 27. Qxf4 {[%clk 0:01:18]}  Rxf4 {[%clk 0:00:15]} 28. f3 {[%clk 0:01:18]}  c5 {[%clk 0:00:12]} 29. Nh3 {[%clk 0:01:17]}  Ra4 {[%clk 0:00:12]} 30. f4 {[%clk 0:01:17]}  Ra2 {[%clk 0:00:11]} 31. Rf2 {[%clk 0:01:16]}  Re8 {[%clk 0:00:10]} 32. Ng5 {[%clk 0:01:15]}  b5 {[%clk 0:00:08]} 33. Rfe2 {[%clk 0:00:52]}  Re7 {[%clk 0:00:08]} 34. f5 {[%clk 0:00:51]}  exf5 {[%clk 0:00:06]} 35. gxf5 {[%clk 0:00:51]}  gxf5 {[%clk 0:00:05]} 36. e6 {[%clk 0:00:52]}  Nxe6 {[%clk 0:00:05]} 37. Nxe6 {[%clk 0:00:52]}  Bxe6 {[%clk 0:00:01]} 38. Rxe6 {[%clk 0:00:52]}  Rxe6 {[%clk 0:00:02]} 39. Rxe6 {[%clk 0:00:52]}  Rxb2 {[%clk 0:00:03]} 40. Bxd5 {[%clk 0:00:51]}  Kf8 {[%clk 0:00:03]} 41. Na5 {[%clk 0:00:42]}  f4 {[%clk 0:00:03]} 42. Bc6 {[%clk 0:00:40]}  Nb8 {[%clk 0:00:01]} 43. Re8+ {[%clk 0:00:39]} 1-0


[Site "https://www.chess.com"]